bitfinex-derivatives/quotes_SOLF0:USTF0_20250325
["timestamp","ask_amount","ask_price","bid_price","bid_amount"]
[1742905022033,8.92316449,141.96,141.85,232.44]
[1742905022233,8.92316449,141.96,141.85,239.4886]
[1742905022932,8.92316449,141.96,141.85,232.44]
[1742905023237,0.05163918,141.92,141.89,0.04902489]
[1742905023534,7.09733918,141.92,141.89,0.04902489]
[1742905023734,0.05163918,141.92,141.89,0.04902489]
[1742905024434,7.0459,141.91,141.89,0.04902489]
[1742905024636,0.05163918,141.92,141.89,0.04902489]
[1742905024832,7.0458,141.91,141.89,0.04902489]
[1742905025132,0.05163918,141.92,141.89,0.04902489]
[1742905025837,7.0463,141.9,141.89,0.04902489]
[1742905028228,0.05163918,141.92,141.89,0.04902489]
[1742905030943,0.05163918,141.92,141.89,7.09582489]
[1742905033743,0.05163918,141.92,141.89,0.04902489]
[1742905034345,7.0461,141.91,141.89,0.04902489]
[1742905034940,7.0463,141.9,141.89,0.04902489]
[1742905038441,7.0462,141.91,141.89,0.04902489]
[1742905038839,0.05163918,141.92,141.89,0.04902489]
[1742905039244,0.05163918,141.92,141.9,7.0461]
[1742905039942,0.05163918,141.92,141.91,7.0458]
[1742905040144,0.05163918,141.92,141.89,0.04902489]
[1742905041448,0.05163918,141.92,141.9,7.0461]
[1742905041846,0.05163918,141.92,141.89,0.04902489]
[1742905042147,0.05163918,141.92,141.89,7.09532489]
[1742905042944,7.09743918,141.92,141.89,0.04902489]
[1742905043149,0.05163918,141.92,141.89,0.04902489]
[1742905044146,7.0463,141.9,141.89,0.04902489]
[1742905048255,7.0461,141.91,141.89,0.04902489]
[1742905049756,7.0463,141.9,141.89,0.04902489]
[1742905050655,8.97480367,141.92,141.85,232.44]
[1742905050848,23.06580367,141.92,141.85,232.44]
[1742905051051,23.01416449,141.92,141.85,232.44]
[1742905051553,7.0485,141.86,141.78,232.56]
[1742905051950,0.05131641,141.83,141.81,0.04518498]
[1742905052157,0.05131641,141.83,141.81,7.09568498]
[1742905052852,0.05131641,141.83,141.82,7.0503]
[1742905053251,8.90780063,141.93,141.81,0.04518498]
[1742905053461,15.31584083,141.95,141.85,7.0486]
[1742905053662,7.0461,141.91,141.85,7.0486]
[1742905053966,14.08860898,141.95,141.84,7.0492]
[1742905054167,7.0468,141.9,141.84,7.0492]
[1742905054464,7.0468,141.9,141.88,0.04562822]
[1742905054657,14.14189582,141.91,141.78,232.56]
[1742905054862,14.08860898,141.91,141.78,232.56]
[1742905055761,0.05386258,141.86,141.83,0.04741538]
[1742905056461,7.10216258,141.86,141.83,0.04741538]
[1742905056666,0.05386258,141.86,141.83,0.04741538]
[1742905056863,7.0493,141.84,141.83,0.04741538]
[1742905057063,0.05386258,141.86,141.78,232.56]
[1742905057464,14.08860898,141.87,141.78,232.56]
[1742905057663,14.08860898,141.89,141.78,232.56]
[1742905058065,7.0506,141.82,141.78,232.56]
[1742905058366,14.08860898,141.87,141.79,0.04465964]
[1742905058569,0.0480202,141.81,141.79,0.04465964]
[1742905058867,7.0513,141.8,141.79,0.04465964]
[1742905060668,0.04888542,141.81,141.71,39.10914702]
[1742905060860,14.1374944,141.81,141.71,39.10914702]
[1742905061062,14.08860898,141.81,141.71,39.10914702]
[1742905061566,15.31657701,141.83,141.71,39.10914702]
[1742905061771,0.05245553,141.77,141.75,0.05069779]
[1742905062165,15.31657701,141.83,141.75,0.05069779]
[1742905062665,0.04723463,141.8,141.75,0.05069779]
[1742905062872,0.04723463,141.8,141.77,7.0526]
[1742905063064,0.04723463,141.8,141.76,0.04488231]
[1742905063260,0.05225873,141.8,141.76,0.04488231]
[1742905063465,0.05225873,141.8,141.77,0.04470206]
[1742905063662,7.051,141.81,141.75,7.0534]
[1742905063863,0.04797381,141.8,141.77,0.05216296]
[1742905064165,7.09937381,141.8,141.77,0.05216296]
[1742905064766,0.04797381,141.8,141.77,0.05216296]
[1742905065469,7.0519,141.79,141.77,0.05216296]
[1742905065768,0.04797381,141.8,141.77,0.05216296]
[1742905066066,0.04797381,141.8,141.66,597.66]
[1742905066267,14.08860898,141.83,141.72,7.0552]
[1742905066669,7.0525,141.78,141.72,7.0552]
[1742905067270,0.04729997,141.76,141.74,0.05023249]
[1742905069165,0.04729997,141.76,141.74,7.10413249]
[1742905069463,0.04729997,141.76,141.74,0.05023249]
[1742905069964,0.04729997,141.76,141.75,7.0538]
[1742905072768,0.04729997,141.76,141.74,0.05023249]
[1742905073162,0.04729997,141.76,141.66,232.66]
[1742905073362,14.08860898,141.75,141.59,39.10914702]
[1742905073566,7.0565,141.7,141.6,232.74]
[1742905073768,1.41083521,141.76,141.6,232.74]
[1742905074373,0.05048372,141.69,141.67,0.05091146]
[1742905074566,0.05048372,141.69,141.65,7.0584]
[1742905074762,7.0555,141.72,141.67,0.04760168]
[1742905074968,0.04868021,141.69,141.67,0.04760168]
[1742905079168,0.04868021,141.69,141.67,7.10530168]
[1742905080480,0.04868021,141.69,141.68,7.0573]
[1742905085083,1.41083521,141.76,141.72,7.0551]
[1742905085479,1.41083521,141.76,141.69,232.84]
[1742905085679,1.41083521,141.76,141.73,7.0547]
[1742905086279,0.04453037,141.76,141.74,7.0543]
[1742905086783,0.04453037,141.76,141.74,7.054]
[1742905087584,0.04453037,141.76,141.75,7.0538]
[1742905092383,0.04453037,141.76,141.73,0.05216612]
[1742905093589,0.04453037,141.76,141.75,7.0538]
[1742905099182,0.04453037,141.76,141.73,0.05216612]
[1742905099984,7.09803037,141.76,141.73,7.10666612]
[1742905101184,7.09803037,141.76,141.74,7.0543]
[1742905101486,0.04453037,141.76,141.74,7.0543]
[1742905103591,0.04453037,141.76,141.75,7.0538]
[1742905112200,14.0979,141.85,141.73,14.16166612]
[1742905112201,8.91899124,141.85,141.73,14.16166612]
[1742905112393,7.0503,141.82,141.73,14.1095]
[1742905112598,7.0503,141.82,141.79,7.0516]
[1742905112795,7.0511,141.81,141.79,7.0516]
[1742905113004,7.0511,141.81,141.73,14.1095]
[1742905113301,7.0511,141.81,141.78,7.052]
[1742905113709,7.0511,141.81,141.76,0.0524825]
[1742905113710,7.10370978,141.81,141.76,0.0524825]
[1742905114006,7.0513,141.8,141.78,7.0519]
[1742905114906,0.05260978,141.81,141.76,0.0524825]
[1742905115300,8.97160102,141.81,141.76,0.0524825]
[1742905115501,7.0528,141.77,141.76,0.0524825]
[1742905128216,7.09961981,141.78,141.76,0.0524825]
[1742905128516,0.04701981,141.78,141.76,0.0524825]
[1742905128920,7.0528,141.77,141.76,0.0524825]
[1742905130016,0.04701981,141.78,141.76,0.0524825]
[1742905130717,0.04701981,141.78,141.76,7.1053825]
[1742905131817,7.09941981,141.78,141.76,7.1053825]
[1742905132415,0.04701981,141.78,141.77,7.0528]
[1742905134717,0.04701981,141.78,141.76,7.1054825]
[1742905135522,0.04701981,141.78,141.76,0.0524825]
[1742905135925,7.09951981,141.78,141.76,0.0524825]
[1742905136522,7.0528,141.77,141.76,0.0524825]
[1742905144236,0.04701981,141.78,141.76,0.0524825]
[1742905145135,0.04701981,141.78,141.76,7.1057825]
[1742905145335,0.04701981,141.78,141.76,0.0524825]
[1742905145734,7.09961981,141.78,141.76,0.0524825]
[1742905146134,0.04701981,141.78,141.76,0.0524825]
[1742905147531,7.0528,141.77,141.76,0.0524825]
[1742905148737,7.09951981,141.78,141.76,0.0524825]
[1742905149039,0.04701981,141.78,141.76,0.0524825]
[1742905149934,0.04701981,141.78,141.76,7.1057825]
[1742905150438,0.04701981,141.78,141.76,0.0524825]
[1742905150739,7.09931981,141.78,141.76,0.0524825]
[1742905151539,0.04701981,141.78,141.76,7.1055825]
[1742905152335,0.04701981,141.78,141.77,7.0528]
[1742905159239,7.0501,141.83,141.81,7.0507]
[1742905159634,8.91899124,141.86,141.73,14.1093]
[1742905159839,8.91899124,141.86,141.77,7.0525]
[1742905160039,8.91899124,141.86,141.72,232.78]
[1742905160444,7.09848917,141.8,141.78,0.05362147]
[1742905160637,7.0515,141.8,141.78,0.05362147]
[1742905160838,7.09659898,141.8,141.78,0.05362147]
[1742905162447,7.09659898,141.8,141.78,7.10582147]
[1742905164149,7.0518,141.79,141.78,0.05362147]
[1742905165049,7.054,141.75,141.72,232.78]
[1742905165443,7.054,141.75,141.72,239.835]
[1742905166245,0.04906649,141.75,141.72,239.88757814]
[1742905166649,0.04906649,141.75,141.73,7.0547]
[1742905166952,0.04906649,141.75,141.72,232.83257814]
[1742905167552,0.04906649,141.75,141.73,7.0548]
[1742905167749,0.04906649,141.75,141.72,232.83257814]
[1742905168150,0.04906649,141.75,141.74,7.0543]
[1742905172055,0.04906649,141.75,141.73,7.0545]
[1742905172557,0.04906649,141.75,141.74,7.0543]
[1742905172758,0.04906649,141.75,141.72,232.83257814]
[1742905173359,0.04906649,141.75,141.73,7.0544]
[1742905176959,0.04906649,141.75,141.72,232.83257814]
[1742905178562,0.04906649,141.75,141.72,239.88757814]
[1742905180467,7.10296649,141.75,141.72,239.88757814]
[1742905181167,0.04906649,141.75,141.73,7.0547]
[1742905183364,0.04906649,141.75,141.72,232.83257814]
[1742905183365,0.04906649,141.75,141.74,7.0543]
[1742905184662,0.04906649,141.75,141.73,7.0545]
[1742905184861,0.04906649,141.75,141.72,232.83257814]
[1742905185764,0.04906649,141.75,141.72,0.05257814]
[1742905185971,7.0548,141.73,141.72,0.05257814]
[1742905195169,0.04906649,141.75,141.72,7.10777814]
[1742905195478,0.04906649,141.75,141.72,0.05257814]
[1742905195678,0.04906649,141.75,141.74,7.0543]
[1742905201975,0.04906649,141.75,141.72,0.05257814]
[1742905202470,7.0548,141.73,141.72,0.05257814]
[1742905202875,8.96805773,141.75,141.66,247.36673575]
[1742905203078,8.91899124,141.75,141.66,254.42483575]
[1742905203281,8.91899124,141.73,141.66,247.36673575]
[1742905203695,7.0571,141.69,141.66,254.42493575]
[1742905204095,0.05393154,141.69,141.66,247.42098059]
[1742905204393,8.97292278,141.69,141.65,58.99485328]
[1742905204787,7.0588,141.65,141.64,78.21829407]
[1742905205188,7.0588,141.65,141.6,232.8]
[1742905205392,7.0584,141.66,141.61,7.0607]
[1742905205590,0.04844354,141.64,141.61,7.11264274]
[1742905205787,0.04844354,141.64,141.61,0.05194274]
[1742905205990,0.04844354,141.64,141.62,7.06]
[1742905206589,0.04844354,141.64,141.61,0.05194274]
[1742905208200,7.10804354,141.64,141.61,0.05194274]
[1742905208386,0.04844354,141.64,141.61,0.05194274]
[1742905208889,0.04844354,141.64,141.61,7.11244274]
[1742905209292,0.04844354,141.64,141.61,0.05194274]
[1742905213097,0.04844354,141.64,141.61,7.11254274]
[1742905213601,0.04844354,141.64,141.61,0.05194274]
[1742905215096,0.04844354,141.64,141.61,7.11264274]
[1742905216998,0.04844354,141.64,141.61,0.05194274]
[1742905220697,7.10774354,141.64,141.61,0.05194274]
[1742905220895,0.04844354,141.64,141.61,0.05194274]
[1742905222501,7.10774354,141.64,141.61,0.05194274]
[1742905224098,0.04844354,141.64,141.61,0.05194274]
[1742905224499,7.10794354,141.64,141.61,0.05194274]
[1742905225201,0.04844354,141.64,141.61,0.05194274]
[1742905226000,0.04844354,141.64,141.54,232.98]
[1742905226001,8.44395411,141.63,141.54,232.98]
[1742905226397,7.0623,141.58,141.54,240.044]
[1742905226699,8.44395411,141.63,141.54,232.98]
[1742905227205,0.05346832,141.6,141.57,0.03677774]
[1742905227500,7.0622,141.58,141.57,0.03677774]
[1742905227692,0.05346832,141.6,141.57,0.03677774]
[1742905228701,7.11496832,141.6,141.57,0.03677774]
[1742905230909,0.05346832,141.6,141.57,0.03677774]
[1742905231810,0.05346832,141.6,141.59,7.0617]
[1742905232513,9.72738479,141.69,141.63,7.0597]
[1742905232714,9.72738479,141.69,141.55,8.44395411]
[1742905233004,7.058,141.67,141.62,7.06]
[1742905233207,7.058,141.67,141.55,8.44395411]
[1742905233208,9.72738479,141.69,141.55,8.44395411]
[1742905233604,7.058,141.67,141.62,7.06]
[1742905233814,9.72738479,141.69,141.56,14.1264]
[1742905234111,0.05243668,141.66,141.63,0.04978239]
[1742905234409,0.05243668,141.66,141.63,7.10918239]
[1742905234606,0.05243668,141.66,141.63,0.04978239]
[1742905235204,0.05243668,141.66,141.65,7.0588]
[1742905237201,0.05243668,141.66,141.63,0.04978239]
[1742905237813,0.05243668,141.66,141.63,7.10948239]
[1742905238313,0.05243668,141.66,141.63,0.04978239]
[1742905238513,0.05243668,141.66,141.64,7.0592]
[1742905238916,0.05243668,141.66,141.63,7.10928239]
[1742905239410,0.05243668,141.66,141.64,7.0591]
[1742905239605,0.05243668,141.66,141.63,0.04978239]
[1742905240005,0.05243668,141.66,141.65,7.0588]
[1742905244515,0.05243668,141.66,141.63,0.04978239]
[1742905245109,0.05243668,141.66,141.63,7.10918239]
[1742905245307,0.05243668,141.66,141.63,0.04978239]
[1742905246414,0.05243668,141.66,141.63,7.10928239]
[1742905246615,0.05243668,141.66,141.63,0.04978239]
[1742905247020,0.05243668,141.66,141.64,7.0593]
[1742905248213,0.05243668,141.66,141.63,7.10928239]
[1742905248416,0.05243668,141.66,141.63,0.04978239]
[1742905249213,0.05243668,141.66,141.63,233.00978239]
[1742905249418,0.05243668,141.66,141.65,7.0588]
[1742905249719,9.72738479,141.73,141.63,233.00978239]
[1742905249916,9.72738479,141.73,141.63,232.96]
[1742905250121,7.0566,141.7,141.67,7.0573]
[1742905250517,7.0566,141.7,141.67,7.0575]
[1742905250718,7.0569,141.69,141.67,7.0575]
[1742905250923,0.04769614,141.7,141.67,7.1058977]
[1742905251222,7.10429614,141.7,141.67,7.1058977]
[1742905251618,7.10429614,141.7,141.68,7.0571]
[1742905253515,7.0568,141.69,141.67,7.1059977]
[1742905254716,7.0568,141.69,141.67,0.0483977]
[1742905255020,7.0573,141.68,141.67,0.0483977]
[1742905258221,0.04769614,141.7,141.67,0.0483977]
[1742905258718,0.04769614,141.7,141.67,7.1060977]
[1742905258913,0.04769614,141.7,141.67,0.0483977]
[1742905259220,0.04769614,141.7,141.67,7.1058977]
[1742905260222,7.10399614,141.7,141.67,7.1058977]
[1742905260716,0.04769614,141.7,141.68,7.0572]
[1742905261121,0.04769614,141.7,141.67,7.1059977]
[1742905261421,0.04769614,141.7,141.67,0.0483977]
[1742905262022,0.04769614,141.7,141.68,7.057]
[1742905262216,0.04769614,141.7,141.67,0.0483977]
[1742905262618,0.04769614,141.7,141.68,7.0569]
[1742905262918,0.04769614,141.7,141.67,0.0483977]
[1742905263118,0.04769614,141.7,141.69,7.0568]
[1742905264624,0.04769614,141.7,141.67,0.0483977]
[1742905265113,0.04769614,141.7,141.69,7.0568]
[1742905267526,0.04769614,141.7,141.68,7.057]
[1742905267924,0.04769614,141.7,141.67,0.0483977]
[1742905268324,7.10439614,141.7,141.67,0.0483977]
[1742905268823,0.04769614,141.7,141.67,0.0483977]
[1742905269627,7.0573,141.68,141.67,0.0483977]
[1742905271725,7.057,141.69,141.67,0.0483977]
[1742905272631,0.04769614,141.7,141.67,0.0483977]
[1742905272632,7.10419614,141.7,141.67,0.0483977]
[1742905272929,7.0568,141.69,141.67,0.0483977]
[1742905274731,7.10419614,141.7,141.67,7.1061977]
[1742905274932,7.10419614,141.7,141.67,0.0483977]
[1742905275231,0.04769614,141.7,141.67,0.0483977]
[1742905275426,7.0571,141.69,141.67,0.0483977]
[1742905276435,7.10419614,141.7,141.67,0.0483977]
[1742905277330,7.0568,141.69,141.67,0.0483977]
[1742905282335,0.04769614,141.7,141.67,0.0483977]
[1742905282735,7.0573,141.68,141.67,0.0483977]
[1742905287036,7.057,141.69,141.67,0.0483977]
[1742905288241,7.0573,141.68,141.67,0.0483977]
[1742905289045,7.06,141.63,141.56,232.92]
[1742905289348,8.43594066,141.66,141.56,232.92]
[1742905289735,7.0606,141.62,141.57,7.0627]
[1742905290346,7.10976857,141.61,141.58,0.04865875]
[1742905291345,7.0613,141.6,141.58,0.04865875]
[1742905292346,7.0617,141.59,141.58,0.04865875]
[1742905294143,7.0614,141.6,141.58,0.04865875]
[1742905294339,0.04886857,141.61,141.58,0.04865875]
[1742905295846,38.9443878,141.69,141.61,26.8]
[1742905296744,7.0584,141.66,141.61,33.8607]
[1742905296945,7.1065754,141.66,141.64,0.04844706]
[1742905297446,0.0481754,141.66,141.64,0.04844706]
[1742905299249,0.0481754,141.66,141.64,7.10764706]
[1742905299953,0.0481754,141.66,141.64,0.04844706]
[1742905300653,7.1065754,141.66,141.64,0.04844706]
[1742905302748,38.9443878,141.73,141.64,0.04844706]
[1742905303052,1.22903055,141.71,141.56,232.92]
[1742905303844,1.22903055,141.71,141.62,0.04977053]
[1742905304149,1.22903055,141.71,141.56,232.92]
[1742905304348,7.0582,141.67,141.65,0.0458181]
[1742905304850,0.04567555,141.67,141.65,0.0458181]
[1742905305046,7.0583,141.66,141.65,0.0458181]
[1742905313250,0.04567555,141.67,141.56,259.72]
[1742905313251,7.0609,141.61,141.56,259.72]
[1742905313454,27.30255632,141.7,141.56,259.72]
[1742905313751,27.30255632,141.7,141.58,7.062]
[1742905314561,0.04653307,141.65,141.63,0.04978787]
[1742905314762,27.30255632,141.7,141.63,0.04978787]
[1742905314954,0.04583608,141.65,141.63,0.04978787]
[1742905315155,27.30255632,141.7,141.63,0.04978787]
[1742905315462,7.0593,141.64,141.63,0.04978787]
[1742905320359,7.0613,141.6,141.57,7.0625]
[1742905320765,38.9443878,141.68,141.57,7.0625]
[1742905321567,7.061,141.61,141.58,7.0622]
[1742905321967,7.1134838,141.61,141.58,7.11434994]
[1742905322770,7.0612,141.6,141.58,7.11434994]
[1742905323470,0.0524838,141.61,141.58,0.05214994]
[1742905323970,9.72738479,141.67,141.59,26.78]
[1742905324661,16.78538479,141.67,141.64,7.0592]
[1742905324859,9.72738479,141.67,141.59,26.78]
[1742905325260,0.05255501,141.64,141.62,0.05178774]
[1742905325461,38.9443878,141.7,141.63,26.78]
[1742905325661,46.0009878,141.7,141.63,26.78]
[1742905325865,38.9443878,141.7,141.65,233.0]
[1742905326772,0.05126734,141.69,141.67,7.0573]
[1742905327578,7.10826734,141.69,141.66,7.10623903]
[1742905327779,0.05126734,141.69,141.66,7.10623903]
[1742905328179,0.05126734,141.69,141.67,7.0578]
[1742905328574,0.05126734,141.69,141.68,7.0573]
[1742905329579,0.05126734,141.69,141.67,7.0575]
[1742905329781,0.05126734,141.69,141.66,0.04823903]
[1742905330784,0.05126734,141.69,141.66,7.10613903]
[1742905331178,0.05126734,141.69,141.66,0.04823903]
[1742905331578,0.05126734,141.69,141.6,26.78]
[1742905331779,7.0591,141.65,141.6,33.8409]
[1742905331980,7.0591,141.65,141.6,26.78]
[1742905332478,13.1827314,141.72,141.6,26.78]
[1742905332479,13.1827314,141.7,141.6,26.78]
[1742905332684,0.04580368,141.64,141.61,0.04510659]
[1742905332983,13.1827314,141.7,141.61,7.0607]
[1742905333283,7.0591,141.65,141.61,7.0607]
[1742905333487,7.0591,141.65,141.64,0.04782678]
[1742905333683,7.0585,141.66,141.64,0.04782678]
[1742905333884,0.04907157,141.67,141.64,0.04782678]
[1742905334387,7.10717157,141.67,141.64,0.04782678]
[1742905335187,7.0586,141.66,141.64,0.04782678]
[1742905337688,7.10707157,141.67,141.64,0.04782678]
[1742905338581,7.0583,141.66,141.64,0.04782678]
[1742905340785,7.0588,141.65,141.64,0.04782678]
[1742905342685,7.0612,141.6,141.59,232.94]
[1742905343388,14.1158,141.67,141.59,232.94]
[1742905343788,7.0606,141.62,141.59,232.94]
[1742905343985,0.05436742,141.64,141.62,0.04477598]
[1742905344290,0.05436742,141.64,141.62,0.04906192]
[1742905344491,7.06,141.63,141.62,0.04906192]
[1742905346090,7.06,141.63,141.62,6.192e-05]
[1742905350598,7.0612,141.6,141.59,232.94]
[1742905352492,20.2427314,141.6,141.53,233.02]
[1742905352695,13.1827314,141.6,141.47,233.02]
[1742905353702,0.04817302,141.55,141.47,259.78]
[1742905353890,7.065,141.53,141.47,259.78]
[1742905354095,13.1827314,141.6,141.47,259.78]
[1742905354295,0.04703454,141.51,141.47,259.78]
[1742905354602,0.04813093,141.5,141.47,259.78]
[1742905354802,13.1827314,141.58,141.47,259.78]
[1742905355002,0.05267016,141.5,141.47,266.8475]
[1742905355302,0.0474174,141.5,141.47,233.02]
[1742905356198,0.0474174,141.5,141.49,7.0667]
[1742905356398,13.1827314,141.6,141.47,233.02]
[1742905356601,7.0634,141.56,141.5,7.0659]
[1742905357606,0.04873279,141.54,141.52,0.04866104]
[1742905357897,7.0635,141.56,141.52,0.04866104]
[1742905358106,0.04983313,141.54,141.52,0.04866104]
[1742905358600,0.04983313,141.54,141.52,7.11346104]
[1742905361306,0.04983313,141.54,141.52,0.04866104]
[1742905361806,7.11443313,141.54,141.52,0.04866104]
[1742905362002,0.04983313,141.54,141.52,0.04866104]
[1742905364704,0.04983313,141.54,141.52,7.11386104]
[1742905364905,0.04983313,141.54,141.52,0.04866104]
[1742905365503,0.04983313,141.54,141.52,7.11376104]
[1742905365905,7.11413313,141.54,141.52,0.04866104]
[1742905366701,0.04983313,141.54,141.52,0.04866104]
[1742905366905,7.0647,141.53,141.52,0.04866104]
[1742905369712,0.04983313,141.54,141.45,233.12]
[1742905369906,14.1262,141.57,141.45,233.12]
[1742905370115,14.1268,141.56,141.45,233.12]
[1742905370310,14.59555988,141.56,141.45,233.12]
[1742905370516,15.82582874,141.56,141.45,233.12]
[1742905370712,14.1279,141.55,141.45,233.12]
[1742905370917,0.05159239,141.52,141.45,233.12]
[1742905371105,0.05159239,141.52,141.46,7.0682]
[1742905371309,7.0665,141.5,141.46,7.0682]
[1742905371908,7.0665,141.5,141.45,233.12]
[1742905371909,0.05159239,141.52,141.45,233.12]
[1742905372113,1.41282848,141.56,141.45,233.12]
[1742905372414,0.05201455,141.5,141.47,7.0675]
[1742905372613,7.0649,141.53,141.47,7.0675]
[1742905372818,0.04695436,141.5,141.47,7.0675]
[1742905373113,0.04695436,141.5,141.45,233.12]
[1742905373709,0.04695436,141.5,141.46,7.0681]
[1742905374811,0.04695436,141.5,141.47,7.0677]
[1742905375405,0.04695436,141.5,141.46,7.068]
[1742905377010,0.04695436,141.5,141.45,233.12]
[1742905377515,0.04695436,141.5,141.49,7.0667]
[1742905379818,1.41282848,141.56,141.52,7.0649]
[1742905380114,7.0638,141.55,141.52,7.0649]
[1742905380714,1.41282848,141.56,141.53,7.0647]
[1742905380917,0.05400012,141.55,141.53,7.0647]
[1742905381920,0.05400012,141.55,141.52,0.04695436]
[1742905382916,0.05400012,141.55,141.45,233.12]
[1742905383213,13.1827314,141.56,141.45,240.1887]
[1742905383611,13.1827314,141.56,141.45,233.12]
[1742905383811,7.0665,141.5,141.46,7.0682]
[1742905386114,0.05128868,141.52,141.45,233.12]
[1742905386320,13.1827314,141.58,141.45,233.12]
[1742905386514,0.04936114,141.5,141.45,233.12]
[1742905386713,13.1827314,141.58,141.45,233.12]
[1742905386918,14.41284805,141.6,141.46,26.74]
[1742905387122,13.1827314,141.6,141.46,26.74]
[1742905387317,7.0635,141.56,141.51,7.0655]
[1742905387514,9.72738479,141.55,141.51,7.0655]
[1742905388118,0.04880906,141.54,141.52,0.0454464]
[1742905388421,0.04880906,141.54,141.52,7.1103464]
[1742905388616,0.04880906,141.54,141.52,0.0454464]
[1742905388814,0.04880906,141.54,141.53,7.0647]
[1742905391323,0.04880906,141.54,141.45,233.12]
[1742905391515,13.1827314,141.56,141.45,233.12]
[1742905391714,7.0666,141.5,141.46,7.068]
[1742905392517,0.0485785,141.49,141.46,7.068]
[1742905393321,0.0485785,141.49,141.47,7.0677]
[1742905394818,0.0485785,141.49,141.48,7.0672]
[1742905395621,291.83161274,141.6,141.51,7.0655]
[1742905395923,7.0634,141.56,141.46,26.74]
[1742905396223,41.21909325,141.62,141.46,26.74]
[1742905396426,38.9443878,141.56,141.46,26.74]
[1742905396813,0.04877557,141.52,141.5,0.0482724]
[1742905397614,7.0657,141.51,141.5,0.0482724]
[1742905398521,0.04877557,141.52,141.4,14.1421]
[1742905398716,13.1827314,141.52,141.38,233.18]
[1742905399125,13.1827314,141.52,141.39,7.0715]
[1742905399723,7.069,141.45,141.39,7.0715]
[1742905400227,0.04723376,141.43,141.39,7.0715]
[1742905400527,0.04723376,141.43,141.4,7.071]
[1742905401323,0.04723376,141.43,141.39,7.0716]
[1742905401521,0.04723376,141.43,141.38,233.18]
[1742905402026,0.04723376,141.43,141.4,7.0709]
[1742905402226,0.04723376,141.43,141.38,233.18]
[1742905402526,0.04723376,141.43,141.41,7.0704]
[1742905403728,0.04723376,141.43,141.42,7.0702]
[1742905404716,38.9443878,141.5,141.45,7.0684]
[1742905405119,7.0674,141.48,141.45,7.0684]
[1742905405931,7.11846552,141.48,141.45,7.11593986]
[1742905406528,7.0677,141.47,141.45,7.11593986]
[1742905407932,7.0677,141.47,141.45,0.04753986]
[1742905408229,0.05106552,141.48,141.45,0.04753986]
[1742905408819,7.0682,141.46,141.45,0.04753986]
[1742905413133,7.0704,141.42,141.38,233.18]
[1742905413329,14.1322,141.51,141.38,233.18]
[1742905413725,7.0695,141.44,141.38,233.18]
[1742905414125,7.0695,141.44,141.4,7.0709]
[1742905414332,0.04996339,141.42,141.4,7.0709]
[1742905415332,0.04996339,141.42,141.4,7.0708]
[1742905418034,0.04996339,141.42,141.41,7.0707]
[1742905419236,0.04996339,141.42,141.4,7.071]
[1742905419636,0.04996339,141.42,141.38,233.18]
[1742905420736,0.04996339,141.42,141.4,7.0708]
[1742905421133,0.04996339,141.42,141.38,233.18]
[1742905422336,9.72738479,141.53,141.43,26.74]
[1742905423031,29.21700301,141.54,141.43,26.74]
[1742905423032,38.9443878,141.54,141.43,26.74]
[1742905423536,0.04930037,141.5,141.47,0.04996339]
[1742905423739,0.04930037,141.5,141.47,7.11736339]
[1742905424339,7.067,141.49,141.47,7.11736339]
[1742905425439,7.0672,141.48,141.47,0.04996339]
[1742905426031,7.0669,141.49,141.47,7.11766339]
[1742905427130,7.0669,141.49,141.47,0.04996339]
[1742905427837,7.0669,141.49,141.47,7.11766339]
[1742905428835,7.0669,141.49,141.47,0.04996339]
[1742905430041,7.0669,141.49,141.47,7.11766339]
[1742905430739,7.11590037,141.5,141.48,7.0672]
[1742905430936,0.04930037,141.5,141.47,260.00996339]
[1742905431330,0.04930037,141.5,141.49,7.0667]
[1742905433439,7.0646,141.54,141.47,260.00996339]
[1742905433743,7.0647,141.53,141.47,260.00996339]
[1742905433942,38.9443878,141.57,141.47,259.96]
[1742905434242,7.0645,141.54,141.52,7.0651]
[1742905434444,0.04682334,141.53,141.51,0.05324144]
[1742905434743,0.04682334,141.53,141.52,7.0652]
[1742905436941,2.334e-05,141.53,141.52,7.0652]
[1742905440836,1.41222991,141.62,141.58,7.0619]
[1742905441046,1.41222991,141.62,141.55,26.7]
[1742905441248,12.30730407,141.66,141.56,233.16]
[1742905441447,12.30730407,141.66,141.59,7.0613]